Cogmind - Beta 12 @@@ ROGUE MODE // 2023.05.26 @ 11:46:21 Player: Mr Goldstein Result: Destroyed by Y-45 Defender with Heavy Assault Rifle Performance ------------- Evolutions (2) 1000 Regions Visited (3) 600 Robots Destroyed (0) 0 Value Destroyed (0) 0 Prototype IDs (1) 20 Alien Tech Used (0) 0 Bonus (470) 470 TOTAL SCORE: 2090 Bonus ------- Pacifist 470 Cogmind --------- Core Integrity 0/550 Matter 260/300 Energy 10/100 System Corruption 0% Temperature Cool (0) Movement Flying (32) Location -8/Materials Parts ------- > --- POWER (1) -------- (None) > --- PROPULSION (4) --- Cooled VTOL Module Cooled VTOL Module Cooled VTOL Module > --- UTILITY (4) ------ Advanced Visual Processing Unit Utility Shielding > --- WEAPON (2) ------- (None) > --- INVENTORY (5) ---- Improved VTOL Module System Shield System Shield System Shield Mini Grenade Launcher Peak State ------------ > --- POWER ------------ (None) > --- PROPULSION ------- Cooled VTOL Module Cooled VTOL Module Cooled VTOL Module > --- UTILITY ---------- Advanced Visual Processing Unit Utility Shielding > --- WEAPON ----------- (None) > --- INVENTORY -------- System Shield System Shield System Shield System Shield Mini Grenade Launcher [Rating: 20] Favorites ----------- Power None Propulsion Cooled VTOL Module Flight Unit Cooled VTOL Module Utility Advanced Visual Processing Unit Processor Advanced Visual Processing Unit Hackware Hacking Suite Protection Utility Shielding Weapon None Build | -11 -10 -9 -8 ------- Run | Jun Mat Mat Mat Slots Evolved 4 | . . 2 2 Power . | . . . . Propulsion 2 | . . 1 1 Utility 2 | . . 1 1 Weapon . | . . . . Parts Attached 7 | . . 1 6 Power . | . . . . Engine . | . . . . Core . | . . . . Reactor . | . . . . Propulsion 4 | . . . 4 Treads . | . . . . Leg . | . . . . Wheel . | . . . . Hover . | . . . . Flight 4 | . . . 4 Utility 3 | . . 1 2 Device . | . . . . Storage . | . . . . Processor 1 | . . 1 . Hackware 1 | . . . 1 Protection 1 | . . . 1 Artifact . | . . . . Weapon . | . . . . Energy Gun . | . . . . Energy Cannon . | . . . . Ballistic Gun . | . . . . Ballistic Cannon . | . . . . Launcher . | . . . . Special Weapon . | . . . . Impact Weapon . | . . . . Slashing Weapon . | . . . . Piercing Weapon . | . . . . Special Melee Weapon . | . . . . Unidentified Prototypes 1 | . . . 1 Parts Lost 2 | . . . 2 Power . | . . . . Propulsion 1 | . . . 1 Utility 1 | . . . 1 Weapon . | . . . . Highest Loss Streak 2 | . . . 2 To Critical Strikes . | . . . . Average Slot Usage (%) 12 | . . 4 22 Flight 4 | . . . 9 Processor 5 | . . 4 9 Hackware 1 | . . . 3 Naked Turns 111 | . 57 54 . Heaviest Build 1 | . . . 1 Greatest Support 15 | 3 3 3 15 Greatest Overweight (x) . | . . . . Average Overweight (x) . | . . . . Largest Inventory Capacity 5 | 5 5 5 5 Average Capacity 5 | 5 5 5 5 Most Carried 5 | . . 4 5 Average Carried 2 | . . 1 4 Final Capacity 5 | 5 5 5 5 Final Carried 5 | . . 4 5 Class Distribution -------------------- 100% | Mutant Dominant Class ---------------- Mutant | -10/Materials Mutant | -9/Materials Mutant | -8/Materials Resources | -11 -10 -9 -8 ----------- Run | Jun Mat Mat Mat Matter Collected 218 | 200 . . 18 Remotely . | . . . . Salvage Created . | . . . . Parts . | . . . . Haulers Intercepted . | . . . . Recyclers Shooed . | . . . . Parts Field Recycled . | . . . . Retrieved Matter . | . . . . Parts Self-Destructed . | . . . . Prevented . | . . . . Kills | -11 -10 -9 -8 ------- Run | Jun Mat Mat Mat Combat Hostiles Destroyed . | . . . . Classes Destroyed . | . . . . Best Kill Streak . | . . . . Combat Bots Only . | . . . . Max Kills in Single Turn . | . . . . Gunslinging . | . . . . Exploded . | . . . . Melee . | . . . . Uniques/NPCs Destroyed . | . . . . Combat | -11 -10 -9 -8 -------- Run | Jun Mat Mat Mat Damage Taken 1102 | . 215 241 646 Core 1015 | . 215 241 559 Absorbed by Shields . | . . . . Core Remaining (%) 51 | 100 14 39 . Volleys Fired . | . . . . Largest . | . . . . Hottest . | . . . . Shots Fired . | . . . . Gun . | . . . . Cannon . | . . . . Launcher . | . . . . Special . | . . . . Kinetic . | . . . . Thermal . | . . . . Explosive . | . . . . Electromagnetic . | . . . . Robot Hit Streak . | . . . . Robot Miss Streak . | . . . . Penetration Max . | . . . . Secondary Targets . | . . . . Shots Hit Robots . | . . . . Core Hits 1 | . . 1 . Critical Kills . | . . . . Critical Parts Destroyed . | . . . . Critical Strikes . | . . . . Melee Attacks . | . . . . Impact . | . . . . Slashing . | . . . . Piercing . | . . . . Sneak Attacks . | . . . . Combat Hostiles . | . . . . Follow-up Attacks . | . . . . Damage Inflicted 4 | . . 1 3 Guns . | . . . . Cannons . | . . . . Explosions . | . . . . Melee . | . . . . Ramming 4 | . . 1 3 Kinetic . | . . . . Thermal . | . . . . Explosive . | . . . . Electromagnetic . | . . . . Impact . | . . . . Slashing . | . . . . Piercing . | . . . . Highest Corruption . | . . . . Average Corruption . | . . . . Corruption Purged . | . . . . Corruption Blocked . | . . . . Overload Shots . | . . . . Overflow Damage . | . . . . Projectiles . | . . . . Explosions . | . . . . Melee . | . . . . Knockbacks . | . . . . Impact . | . . . . Kinetic . | . . . . Secondary . | . . . . Self-Inflicted Damage 1 | . . . 1 Shots . | . . . . Rammed 3 | . . 2 1 Targets Rammed 3 | . . 2 1 Kicked . | . . . . Crushed . | . . . . Highest Temperature . | . . . . Average Temperature . | . . . . Received Heat Transfer 315 | . 93 15 207 Siege Activations . | . . . . Robots Corrupted . | . . . . Combat Hostiles . | . . . . Parts Fried . | . . . . Impact Corruptions . | . . . . Robots Melted . | . . . . Combat Hostiles . | . . . . Parts Melted . | . . . . Heat Transferred . | . . . . Parts Sabotaged . | . . . . Parts Stolen . | . . . . Parts Stripped . | . . . . Power Chain Reactions . | . . . . Missiles Intercepted . | . . . . Alert | -11 -10 -9 -8 ------- Run | Jun Mat Mat Mat Peak Influence 214 | . 75 166 214 Initial 69 | . . 31 69 Average 86 | . 44 87 109 Maximum Alert Level 1 | . . . 1 Low Security (%) 99 | 100 100 100 99 Level 1 . | . . . . Level 2 . | . . . . Level 3 . | . . . . Level 4 . | . . . . Level 5 . | . . . . High Security . | . . . . Max Security . | . . . . Squads Dispatched 9 | . 2 3 4 Investigation 4 | . 1 1 2 Extermination . | . . . . Reinforcement 5 | . 1 2 2 Assault . | . . . . Garrison . | . . . . Intercept . | . . . . Searches Triggered . | . . . . Construction Impeded . | . . . . Haulers Reinforced . | . . . . Active Scanning Responses . | . . . . Cargo Convoy Interrupts . | . . . . Stealth | -11 -10 -9 -8 --------- Run | Jun Mat Mat Mat Distress Signals 2 | . . 1 1 Communications Jammed . | . . . . Distress Signals . | . . . . Times Spotted 47 | . 9 13 25 Peak Tracking Total 20 | . 7 9 20 Tactical Retreats 4 | . . 2 2 Traps | -11 -10 -9 -8 ------- Run | Jun Mat Mat Mat Traps Triggered 2 | . . 1 1 Indirectly . | . . . . Trap Hack Attempts . | . . . . Triggered . | . . . . Disarmed . | . . . . Reprogrammed . | . . . . Reused . | . . . . Traps Extracted . | . . . . Installed . | . . . . Triggered . | . . . . Machines | -11 -10 -9 -8 ---------- Run | Jun Mat Mat Mat Machines Disabled . | . . . . Max in Single Turn . | . . . . Machines Repaired . | . . . . Machines Sabotaged . | . . . . Overloaded Fab Kills . | . . . . Hacking | -11 -10 -9 -8 --------- Run | Jun Mat Mat Mat Machines Accessed 3 | . 1 . 2 Terminals 1 | . . . 1 Fabricators . | . . . . Repair Stations . | . . . . Recycling Units 1 | . 1 . . Scanalyzers . | . . . . Garrison Access 1 | . . . 1 Total Hacks 8 | . 2 . 6 Successful 1 | . 1 . . Failed 7 | . 1 . 6 Catastrophic 2 | . . . 2 Database Lockouts . | . . . . Manual 5 | . 2 . 3 Terminals 3 | . . . 3 Fabricators . | . . . . Repair Stations . | . . . . Recycling Units 2 | . 2 . . Scanalyzers . | . . . . Garrison Access 3 | . . . 3 Terminal Hacks . | . . . . Fabricator Hacks . | . . . . Repair Station Hacks . | . . . . Recycling Unit Hacks . | . . . . Scanalyzer . | . . . . Garrison Access Hacks . | . . . . Unauthorized Hacks 1 | . 1 . . Terminals . | . . . . Fabricators . | . . . . Repair Stations . | . . . . Recycling Units 1 | . 1 . . Tunnel 1 | . 1 . . Scanalyzers . | . . . . Garrison Access . | . . . . Data Cores Recovered . | . . . . Used . | . . . . Hacking Detections 2 | . . . 2 Full Trace Events 1 | . . . 1 Feedback Events . | . . . . Feedback Blocked . | . . . . Robot Schematics Acquired . | . . . . Robots Built . | . . . . Authchips . | . . . . Time . | . . . . Total Robot Build Rating . | . . . . Part Schematics Acquired . | . . . . Parts Built . | . . . . Authchips . | . . . . Time . | . . . . Total Part Build Rating . | . . . . Parts Repaired . | . . . . Time . | . . . . Parts Recycled . | . . . . Recycled Matter . | . . . . Retrieved Matter . | . . . . Retrieved Components . | . . . . Parts Scanalyzed . | . . . . Part Schematics Acquired . | . . . . Parts Damaged . | . . . . Bothacking | -11 -10 -9 -8 ------------ Run | Jun Mat Mat Mat Used RIF Installer . | . . . . Robots Hacked . | . . . . Non-combat . | . . . . Combat . | . . . . Robot Hacks Applied . | . . . . Relay Couplers Released . | . . . . Fabnet Peak Effective % . | . . . . Robots Rewired . | . . . . Allies Hacked . | . . . . Hacks Repelled . | . . . . Allies | -11 -10 -9 -8 -------- Run | Jun Mat Mat Mat Total Allies . | . . . . Largest Group . | . . . . Highest-Rated Group . | . . . . Highest-Rated Ally . | . . . . Total Orders . | . . . . Ally Attacks . | . . . . Total Damage . | . . . . Kills . | . . . . Allies Corrupted . | . . . . Allies Melted . | . . . . Intel | -11 -10 -9 -8 ------- Run | Jun Mat Mat Mat Robot Analysis Total . | . . . . Derelict Logs Recovered . | . . . . Drone Launches . | . . . . Drone Recoveries . | . . . . Exploration | -11 -10 -9 -8 ------------- Run | Jun Mat Mat Mat Turns Passed 312 | 12 57 95 148 Spaces Moved 640 | 24 113 175 328 Core 464 | 24 113 175 152 Treads . | . . . . Legs . | . . . . Wheels . | . . . . Hover . | . . . . Flight 176 | . . . 176 Fastest Speed 29 | 50 50 50 29 Average Speed 45 | 50 50 50 41 Slowest Speed 50 | 50 50 50 50 Overloaded Moves . | . . . . Propulsion Burnouts . | . . . . Robots Hopped 4 | . . . 4 Cave-ins Triggered . | . . . . Exploration Rate (%) 24 | 3 29 25 42 Regions Visited 3 Branch Regions . Pre-discovered Areas 1 | . 1 . . Known Exits Taken . | . . . . Unknown Exits Taken 3 | 1 1 1 . Scrap Searched . | . . . . Spaces Dug . | . . . . Terrain Destroyed . | . . . . Melee . | . . . . Projectile . | . . . . AOE . | . . . . Terrain Rammed . | . . . . Walls Destroyed . | . . . . Machines Disabled . | . . . . Actions | -11 -10 -9 -8 --------- Run | Jun Mat Mat Mat Total 650 | 23 112 181 334 Wait . | . . . . Move 629 | 23 112 174 320 Hop 4 | . . . 4 Pick Up 6 | . . 4 2 Fast Attach 7 | . . 1 6 Attach . | . . . . Detach . | . . . . Swap . | . . . . Drop 1 | . . . 1 Fire . | . . . . Melee . | . . . . Ram 3 | . . 2 1 Kick . | . . . . Crush . | . . . . Escape Stasis . | . . . . Rewire . | . . . . Trap . | . . . . Miscellaneous . | . . . . Route ------- -11/Junkyard -10/Materials -9/Materials -8/Materials History --------- Turn | Location | Event 4 | -11/Junkyard | Discovered new exit (range 15) 13 | -11/Junkyard | Entered Materials 56 | -10/Materials | Core integrity fell below 50% 63 | -10/Materials | Discovered new exit (range 14) 68 | -10/Materials | Core integrity fell below 20% 70 | -10/Materials | Entered another Materials area 70 | -9/Materials | Evolved 2 slots: Propulsion x1, Utility x1 148 | -9/Materials | Core integrity fell below 50% 161 | -9/Materials | Discovered new exit (range 10) 165 | -9/Materials | Entered another Materials area 165 | -8/Materials | Evolved 2 slots: Propulsion x1, Utility x1 265 | -8/Materials | Core integrity fell below 50% 302 | -8/Materials | Core integrity fell below 20% 313 | -8/Materials | Destroyed by Y-45 Defender with Heavy Assault Rifle Last Messages --------------- 00261_ K-01 Serf cleans the Electrolysis Chamber. 00263_ Hacking Suite destroyed. 00264_ Critical hit (Burn: +37). 00269_ Acquired Prototype Flight Unit. 00269_ Identified Cld. VTOL Module. 00271_ Acquired Cld. VTOL Module. 00285_ Electrolysis Chamber disabled. 00286_ Slug penetrates Electrolysis Chamber. 00287_ K-01 Serf collects debris. 00289_ Triggered Alarm Trap. 00289_ An alarm sounds. 00289_ ALERT: Alarm triggered, dispatching investigation squad. 00293_ Acquired Utility Shielding. 00294_ K-01 Serf collects debris. 00300_ C-30 ARC bursts open, deploying its payload. 00300_ S-10 Pest unfolds itself. 00302_ ALERT: Suspicious intruders detected, dispatching Cutter reinforcements to area. 00308_ Dropped System Shield. 00309_ Acquired Prototype Flight Unit. Map ----- +----------------------------------------------------+ | | | | | | | | | | | | | ?????????????????????????????????????????##### | | ????????????????????????????????????????# T | | ????????????????????????????????????????# | | ????????????????????????????????????????# | | ???????????????????????##???????????????# | | ???????????????????##### ###????????????# | | ???????????????????# #????????????# | | ???????????????????# / " #????????????# | | ???????????????????# T #????????????? | | ???????????????????# """ " #??????????????? | | ???????????????????# """ #???????????????##+ | | ???????????????????# """ !#???????????????# | | ???????????????????# #????????######## | | ???????????????????# """ #????????# + | | ???????????????????# """ ########## """ # | | ???????????????????# """ # # """ # | | ???????????????????# / """ "# """ # | | ?????????????## ???#####"+#;! """ "# # | | ?????????????# ##### # """ "# """ # | | ?????????????# @ H # T# """ + | | ?????????????# Y + """ "# """ # | | ?????????????# #####! # """ "# ##+ | | ?????????????###??????##Y ## """ "# /[[ !#?? | | ???????????????????????# ## # /[[ #?? | | ???????????????????????+ ####+###### /[% #?? | | ???????????????????????# / #?? | | ???????????????????????# #############?? | | ???????????????????????#####+###?????????????? | | ?????????????????????????????????????????????? | | ?????????????????????????????????????????????? | | ?????????????????????????????????????????????? | | ?????????????????????????????????????????????? | | ?????????????????????????????????????????????? | | ?????????????????????????????????????????????? | | ?????????????????????????????????????????????? | | ?????????????????????????????????????????????? | | ?????????????????????????????????????????????? | | ?????????????????????????????????????????????? | | ?????????????????????????????????????????????? | | ?????????????????????????????????????????????? | | ?????????????????????????????????????????????? | | ?????????????????????????????????????????????? | | ?????????????????????????????????????????????? | | ?????????????????????????????????????????????? | +----------------------------------------------------+ Best States ------------- Heat Dissipation 31 Energy Generation 5 Energy Capacity 100 Matter Stores 300 Matter Capacity 300 Sight Range 20 Terrain Scan Density 10 Utility Shielding 33 Evasion (%) 64 Offensive Hacking 10 Item Schematics ----------------- None Robot Schematics ------------------ None Fabricated ------------ Nothing Alien Tech Used ----------------- None Achievements -------------- None Challenges ------------ None Game ------ Seed WeldingArcArchive Manual? 0 Play Time 00:06:05 Cumulative 240.8 hours Start 2023.05.26 @ 11:41:42 End 2023.05.26 @ 11:46:21 Sessions 1 Manual Loads 0 Difficulty Rogue Special Mode None Game No. 727 Rogue 727 Adventurer 0 Explorer 0 Win Type - Total 11 Types 8/0/1/2/0/0/0/0/0 Lore% 86 Gallery% 82 Achievement% 73 Wizard Run 0 Options --------- ASCII 0 Keyboard 0 Movement Numpad Keybinds 0 Fullscreen 1 Font 16/SmallcapsGlow Map View 75x55 Tactical HUD 1 Map Filters NONE Filters NONE Steam 1 RUN: 390880f2-c8aa-4331-8e48-78825d630a65